bitfinex-derivatives/quotes_ETHF0:USTF0_20230403
["timestamp","ask_amount","ask_price","bid_price","bid_amount"]
[1680491106178,5.03428222,1775.6,1775.5,3.53866899]
[1680491111984,5.03428222,1775.6,1775.5,4.38166899]
[1680491113984,8.83175778,1775.6,1775.5,4.08977354]
[1680491114886,8.83175778,1775.6,1775.5,3.24977354]
[1680491119686,8.83175778,1775.6,1775.5,1.56857716]
[1680491120383,9.71672665,1775.6,1775.5,1.18122048]
[1680491121990,9.12705109,1775.6,1775.5,2.02622048]
[1680491126284,9.12705109,1775.6,1775.5,0.845]
[1680491126688,9.12705109,1775.6,1775.5,2.02622048]
[1680491127095,9.12705109,1775.6,1775.5,0.845]
[1680491132689,9.12705109,1775.6,1775.5,1.73064834]
[1680491135697,9.68384407,1775.6,1775.5,1.73064834]
[1680491146802,9.68384407,1775.6,1775.5,2.32090756]
[1680491147105,9.68384407,1775.6,1775.5,2.3208944]
[1680491148303,9.68384407,1775.6,1775.5,1.43524606]
[1680491148498,8.7988752,1775.6,1775.5,1.43524606]
[1680491149101,9.68445697,1775.6,1775.5,1.43524606]
[1680491150305,8.7988752,1775.6,1775.5,1.43524606]
[1680491150605,9.68445219,1775.6,1775.5,1.43524606]
[1680491150805,8.7988752,1775.6,1775.5,1.43524606]
[1680491153308,9.9788675,1775.6,1775.5,1.43524606]
[1680491154805,8.7988752,1775.6,1775.5,1.43524606]
[1680491156605,0.5,1775.5,1775.3,1.4758944]
[1680491156809,5.52500544,1775.4,1775.2,0.59024606]
[1680491157106,1.47584246,1775.3,1775.2,0.88564834]
[1680491157706,2.47584246,1775.3,1775.2,0.88564834]
[1680491158802,1.88550202,1775.3,1775.2,0.88564834]
[1680491159412,2.47592895,1775.3,1775.2,0.88564834]
[1680491159603,1.59042693,1775.3,1775.2,1.47590588]
[1680491159809,2.47592895,1775.3,1775.2,1.47591178]
[1680491160010,2.47592895,1775.3,1775.2,0.59026344]
[1680491160413,1.88550202,1775.3,1775.2,0.59026344]
[1680491160914,6.68550202,1775.3,1775.2,0.59026344]
[1680491162917,5.68550202,1775.3,1775.2,0.59026344]
[1680491164214,6.68550202,1775.3,1775.2,0.59026344]
[1680491164613,5.68550202,1775.3,1775.2,0.59026344]
[1680491164813,6.00322993,1775.3,1775.2,0.59026344]
[1680491165210,6.59333007,1775.3,1775.2,0.59026344]
[1680491166020,7.59333007,1775.3,1775.2,0.59026344]
[1680491166221,6.59333007,1775.3,1775.2,0.59026344]
[1680491166621,5.70782805,1775.3,1775.2,1.72564834]
[1680491167815,5.70782805,1775.3,1775.2,2.31568762]
[1680491168428,5.70782805,1775.3,1775.2,1.72564834]
[1680491169617,5.70782805,1775.3,1775.2,2.3155658]
[1680491172024,5.70782805,1775.3,1775.2,2.3205658]
[1680491173023,5.11772791,1775.3,1775.2,2.3205658]
[1680491173213,5.70782805,1775.3,1775.2,2.3205658]
[1680491173624,5.11772791,1775.3,1775.2,2.3205658]
[1680491178227,5.70782805,1775.3,1775.2,2.3205658]
[1680491181323,5.70782805,1775.3,1775.2,1.73064834]
[1680491181630,0.90782805,1775.3,1775.2,1.73064834]
[1680491182423,0.90782805,1775.3,1775.2,2.32057642]
[1680491182623,5.70782805,1775.3,1775.2,2.32057642]
[1680491184235,5.70782805,1775.3,1775.2,1.43492808]
[1680491184731,5.70782805,1775.3,1775.2,2.32057642]
[1680491185838,6.59333007,1775.3,1775.2,1.43492808]
[1680491190545,6.00322993,1775.3,1775.2,2.32057642]
[1680491192047,6.00322993,1775.3,1775.2,2.31957642]
[1680491192647,6.00322993,1775.3,1775.2,1.72964834]
[1680491193446,6.00322993,1775.3,1775.2,2.32003386]
[1680491194551,7.00322993,1775.3,1775.2,1.72964834]
[1680491194747,6.00322993,1775.3,1775.0,1.18122048]
[1680491194951,6.07896605,1775.1,1774.9,1.47671781]
[1680491195153,0.845,1775.0,1774.9,0.88606392]
[1680491195353,1.53601073,1775.0,1774.9,1.43569767]
[1680491195648,1.24074818,1775.0,1774.9,1.43569767]
[1680491195949,1.24074978,1775.0,1774.9,1.43569767]
[1680491196250,1.24074978,1775.0,1774.9,0.59069767]
[1680491196843,1.24074978,1775.0,1774.9,1.43569767]
[1680491196844,2.24074978,1775.0,1774.9,1.43569767]
[1680491197044,1.24074978,1775.0,1774.9,1.43569767]
[1680491197445,2.24074978,1775.0,1774.9,1.43569767]
[1680491197644,2.24074978,1775.0,1774.9,0.845]
[1680491197841,2.24074978,1775.0,1774.9,1.43569767]
[1680491198547,2.24074978,1775.0,1774.9,0.845]
[1680491199649,1.24074978,1775.0,1774.9,0.845]
[1680491200051,2.24074978,1775.0,1774.9,0.845]
[1680491201847,1.24074978,1775.0,1774.9,0.845]
[1680491202155,0.94485047,1775.0,1774.8,2.31876159]
[1680491202358,0.94485047,1775.0,1774.9,0.845]
[1680491202549,0.94485047,1775.0,1774.9,1.43569767]
[1680491202748,0.35484468,1775.0,1774.9,1.43569767]
[1680491205051,0.94485047,1775.0,1774.9,0.59069767]
[1680491205356,1.94485047,1775.0,1774.8,1.43569767]
[1680491205659,3.2078,1774.9,1774.8,1.43569767]
[1680491206255,3.79780579,1774.9,1774.8,0.845]
[1680491206664,3.2078,1774.9,1774.8,0.845]
[1680491206953,3.79780579,1774.9,1774.8,0.845]
[1680491208656,3.2078,1774.9,1774.8,0.845]
[1680491209953,3.56863454,1774.9,1774.8,0.845]
[1680491212868,0.845,1774.8,1774.5,0.59069767]
[1680491213168,3.2078,1774.6,1774.4,0.59069767]
[1680491213464,3.2078,1774.6,1774.4,1.43569767]
[1680491214169,1.0,1774.5,1774.4,1.43569767]
[1680491214574,1.0,1774.5,1774.4,1.42882899]
[1680491215279,4.2078,1774.6,1774.4,1.42882899]
[1680491215772,1.0,1774.5,1774.4,1.42882899]
[1680491216773,3.2078,1774.6,1774.4,1.42882899]
[1680491216960,3.2078,1774.8,1774.5,0.84]
[1680491217160,3.2078,1774.8,1774.6,0.845]
[1680491217671,1.0,1774.7,1774.6,0.845]
[1680491217969,3.2078,1774.8,1774.6,0.845]
[1680491223477,1.0,1774.7,1774.6,0.845]
[1680491224975,1.4587387,1774.7,1774.6,0.845]
[1680491225579,0.4587387,1774.7,1774.6,0.845]
[1680491227179,0.4587387,1774.7,1774.6,0.795]
[1680491227581,0.4587387,1774.7,1774.6,0.745]
[1680491227880,0.4587387,1774.7,1774.6,0.695]
[1680491236575,0.4587387,1774.7,1774.5,1.73106392]
[1680491236779,3.2078,1774.6,1774.5,0.84]
[1680491236980,4.2078,1774.6,1774.5,0.84]
[1680491237478,3.2078,1774.6,1774.5,0.84]
[1680491239687,3.79718692,1774.6,1774.5,1.72606392]
[1680491239887,4.25654511,1774.6,1774.5,1.72606392]
[1680491240489,4.25654511,1774.6,1774.5,0.88606392]
[1680491241894,5.25654511,1774.6,1774.5,0.88606392]
[1680491243194,6.14245021,1774.6,1774.4,1.73106392]
[1680491243401,5.25654511,1774.6,1774.4,1.73106392]
[1680491243585,6.14245021,1774.6,1774.4,1.73106392]
[1680491243892,1.0,1774.5,1774.4,1.73106392]
[1680491244294,5.25654511,1774.6,1774.4,1.73106392]
[1680491244994,1.0,1774.5,1774.4,1.73106392]
[1680491245504,1.58938692,1774.5,1774.4,0.845]
[1680491245687,1.58938692,1774.5,1774.4,1.73106392]
[1680491247104,1.58938692,1774.5,1774.4,0.88606392]
[1680491249296,1.58938692,1774.5,1774.3,1.73106392]
[1680491249492,3.2078,1774.4,1774.3,1.73106392]
[1680491250395,3.2078,1774.4,1774.3,0.845]
[1680491251198,3.2078,1774.4,1774.3,2.02622048]
[1680491251400,3.2078,1774.4,1774.3,0.845]
[1680491251791,3.2078,1774.4,1774.3,2.02622048]
[1680491253596,0.58938692,1774.5,1774.3,2.02622048]
[1680491253797,5.14245021,1774.6,1774.4,1.73047267]
[1680491254598,0.58938692,1774.5,1774.4,1.73047267]
[1680491254991,1.04936408,1774.5,1774.4,1.73047267]
[1680491256295,2.04936408,1774.5,1774.4,1.73047267]
[1680491256598,1.93526918,1774.5,1774.4,1.73047267]
[1680491258202,2.19088226,1774.5,1774.4,0.88547267]
[1680491260306,1.89571066,1774.5,1774.4,0.88547267]
[1680491260700,2.78161576,1774.5,1774.4,0.88547267]
[1680491262002,1.93661576,1774.5,1774.4,0.88547267]
[1680491263598,1.05071066,1774.5,1774.4,0.88547267]
[1680491263902,1.93661576,1774.5,1774.4,0.88547267]
[1680491264195,1.05071066,1774.5,1774.4,0.88547267]
[1680491264391,1.93661576,1774.5,1774.4,0.88547267]
[1680491265801,1.05071066,1774.5,1774.4,0.88547267]
[1680491266693,1.93661576,1774.5,1774.4,0.88547267]
[1680491268108,1.05071066,1774.5,1774.4,0.88547267]
[1680491269807,1.93661576,1774.5,1774.4,0.88547267]
[1680491271819,1.05071066,1774.5,1774.4,0.88547267]
[1680491272112,1.05071066,1774.5,1774.4,1.73047267]
[1680491273521,1.93661576,1774.5,1774.4,1.73047267]
[1680491276319,1.34588226,1774.5,1774.4,1.73047267]
[1680491277123,1.90420285,1774.5,1774.4,1.73047267]
[1680491278721,2.86329775,1774.5,1774.2,2.02622048]
[1680491278925,0.8864403,1774.4,1774.3,0.88626418]
[1680491279119,5.84994312,1774.4,1774.3,0.88626418]
[1680491279623,1.0,1774.3,1774.2,1.73126418]
[1680491279826,2.47738515,1774.3,1774.2,1.73126418]
[1680491280228,1.47738515,1774.3,1774.2,1.73126418]
[1680491280520,2.47738529,1774.3,1774.2,1.73126418]
[1680491280724,1.47738529,1774.3,1774.2,1.73126418]
[1680491281224,1.47738529,1774.3,1774.2,0.845]
[1680491281225,0.88643109,1774.3,1774.2,0.845]
[1680491282023,0.88643109,1774.3,1774.1,2.02122048]
[1680491282223,3.79886851,1774.2,1774.1,0.84]
[1680491282422,3.79886851,1774.2,1774.1,1.15946015]
[1680491282624,3.79886851,1774.2,1774.1,2.02196841]
[1680491282820,3.79886851,1774.2,1774.1,1.15946015]
[1680491283027,3.2078,1774.2,1774.1,2.02179823]
[1680491283327,3.2078,1774.2,1774.1,2.34125838]
[1680491284230,3.2078,1774.2,1774.1,2.90798744]
[1680491285527,3.2078,1774.2,1774.1,2.34125838]
[1680491288918,3.66917896,1774.2,1774.1,2.34125838]
[1680491290930,4.26024747,1774.2,1774.1,2.02179823]
[1680491292021,4.26024747,1774.2,1774.1,2.02679823]
[1680491293435,3.66917896,1774.2,1774.1,2.02679823]
[1680491294028,5.10124747,1774.2,1774.1,0.88612188]
[1680491294444,0.845,1774.1,1774.0,0.88612188]
[1680491294637,2.57243109,1774.1,1773.9,0.88612188]
[1680491294838,4.93923109,1774.0,1773.9,0.88612188]
[1680491295034,1.0,1773.9,1773.3,2.05699614]
[1680491295229,4.0528,1773.5,1773.4,1.47740369]
[1680491295436,3.2078,1773.5,1773.2,1.0]
[1680491295637,3.2078,1773.5,1773.4,1.47739982]
[1680491296232,3.2078,1773.5,1773.3,1.18010401]
[1680491296427,0.845,1773.4,1773.2,1.18010401]
[1680491296631,3.2078,1773.3,1773.2,1.18010401]
[1680491297033,3.2078,1773.3,1773.2,2.02510401]
[1680491297235,3.2078,1773.3,1773.2,1.18010401]
[1680491297435,3.2078,1773.5,1773.2,1.18010401]
[1680491297644,2.72691719,1773.7,1773.3,1.18010401]
[1680491297645,3.2078,1773.7,1773.3,1.18010401]
[1680491297837,3.79841146,1773.7,1773.6,1.687]
[1680491298233,3.2078,1773.7,1773.6,1.687]
[1680491298443,3.79841146,1773.7,1773.5,0.84]
[1680491298637,1.0,1773.6,1773.5,0.84]
[1680491300039,1.88720268,1773.6,1773.5,0.84]
[1680491302142,1.88720268,1773.6,1773.4,1.127]
[1680491302341,3.2078,1773.5,1773.4,1.127]
[1680491302655,3.2078,1773.5,1773.2,1.121]
[1680491302943,3.2078,1773.3,1773.2,1.121]
[1680491304443,3.2078,1773.3,1773.0,1.68365707]
[1680491304645,3.2078,1773.1,1772.8,1.18010401]
[1680491304844,3.2078,1773.1,1773.0,1.127]
[1680491305242,4.07205235,1773.1,1773.0,1.127]
[1680491309957,0.86425235,1773.1,1773.0,1.127]
[1680491310252,3.2078,1773.3,1773.0,2.254]
[1680491310445,3.2078,1773.3,1772.9,1.0]
[1680491310446,3.2078,1773.3,1773.2,1.123]
[1680491311447,3.2078,1773.5,1773.2,2.123]
[1680491311640,3.2078,1773.5,1773.4,1.127]
[1680491314455,3.2078,1773.5,1773.4,2.254]
[1680491314650,3.2078,1773.8,1773.4,2.254]
[1680491314863,0.55038357,1774.0,1773.7,1.127]
[1680491315154,3.2078,1773.8,1773.5,1.0]
[1680491315354,3.2078,1773.6,1773.5,1.0]
[1680491315657,3.2078,1773.8,1773.5,2.123]
[1680491315855,3.2078,1773.8,1773.7,1.127]
[1680491318153,3.2078,1774.0,1773.7,1.127]
[1680491318360,3.2078,1774.0,1773.9,1.127]
[1680491319162,3.2078,1774.0,1773.9,2.127]
[1680491319653,3.2078,1774.0,1773.9,1.127]
[1680491322163,3.2078,1774.0,1773.9,2.127]
[1680491323952,3.2078,1774.0,1773.9,1.70079172]
[1680491329460,2.15735802,1774.4,1773.9,1.70079172]
[1680491329461,3.2078,1774.2,1773.9,1.70079172]
[1680491329665,3.2078,1774.2,1774.1,1.127]
[1680491330063,0.55315351,1774.2,1774.1,2.254]
[1680491330265,3.2078,1774.4,1774.1,2.254]
[1680491330474,1.47652865,1774.7,1774.3,7.884]
[1680491330765,3.84594289,1775.0,1774.6,4.3288]
[1680491330969,3.2578,1775.0,1774.9,1.123]
[1680491331371,0.05,1775.0,1774.9,1.123]
[1680491331667,0.05,1775.0,1774.9,5.4578]
[1680491332664,0.16955526,1775.0,1774.9,2.25]
[1680491332871,0.16955526,1775.0,1774.9,5.4578]
[1680491333061,3.2078,1775.5,1775.0,0.169]
[1680491333269,0.58814289,1775.7,1775.6,1.127]
[1680491333565,3.79594289,1775.8,1775.6,2.254]
[1680491333765,3.79594289,1775.8,1775.7,1.127]
[1680491334166,3.2078,1775.8,1775.7,1.127]
[1680491334873,3.2078,1775.8,1775.7,0.97178225]
[1680491335065,3.2078,1775.8,1775.6,1.127]
[1680491335582,1.0,1775.7,1775.6,1.127]
[1680491336271,3.2078,1775.8,1775.6,1.127]
[1680491340376,3.2078,1775.8,1775.7,1.121]
[1680491340571,0.57400869,1776.0,1775.7,1.25856003]
[1680491340572,3.2078,1776.0,1775.7,1.25856003]
[1680491340773,3.2078,1776.0,1775.9,1.127]
[1680491344975,3.2078,1776.0,1775.9,1.32317213]
[1680491345176,3.2078,1776.0,1775.9,1.31917213]
[1680491347680,4.3348,1776.0,1775.9,0.19617213]
[1680491347984,4.3348,1776.0,1775.6,1.127]
[1680491348283,3.2078,1775.7,1775.6,1.127]
[1680491350085,3.2078,1775.7,1775.4,1.127]
[1680491350284,3.2078,1775.5,1775.4,1.127]
[1680491351978,3.2078,1775.5,1775.3,1.127]
[1680491355188,3.2078,1775.5,1775.4,1.127]
[1680491356683,3.2078,1775.8,1775.4,1.127]
[1680491356884,3.2078,1775.8,1775.7,1.127]
[1680491358993,3.2078,1775.8,1775.6,1.127]
[1680491360088,3.2078,1775.8,1775.7,0.15458664]
[1680491360291,3.2078,1775.8,1775.6,1.127]
[1680491362089,3.2078,1775.8,1775.7,1.127]
[1680491366883,0.15521454,1775.6,1775.4,1.127]
[1680491367201,3.2078,1775.5,1775.4,1.127]
[1680491373100,3.79594289,1775.5,1775.4,1.127]
[1680491374992,3.79594289,1775.5,1775.4,1.26061752]
[1680491375193,4.38896605,1775.5,1775.4,1.26061752]
[1680491376295,17.90501521,1775.5,1775.4,1.26061752]
[1680491378101,16.72384916,1775.5,1775.4,1.26061752]
[1680491381298,18.1960546,1775.5,1775.4,0.13361752]
[1680491381804,18.89459824,1775.5,1775.4,0.13361752]
[1680491382006,20.01659824,1775.5,1775.4,0.13361752]
[1680491382302,20.01659824,1775.5,1775.1,2.58245863]
[1680491382507,4.09319157,1775.2,1775.1,1.123]
[1680491387710,3.2078,1775.2,1775.0,1.127]
[1680491387913,1.8849905,1775.1,1775.0,1.127]
[1680491388211,2.07648771,1775.1,1775.0,1.127]
[1680491388619,1.07648771,1775.1,1775.0,1.127]
[1680491389207,2.07648771,1775.1,1775.0,1.127]
[1680491389414,1.07648771,1775.1,1775.0,1.127]
[1680491389716,2.07648771,1775.1,1775.0,1.127]
[1680491390012,1.07648771,1775.1,1775.0,1.127]
[1680491390209,2.07648771,1775.1,1775.0,1.127]
[1680491390413,0.19149721,1775.1,1775.0,1.127]
[1680491390715,1.07611416,1775.1,1775.0,1.127]
[1680491390911,0.88461695,1775.1,1775.0,1.127]
[1680491391117,1.06784796,1775.1,1775.0,1.127]
[1680491391518,1.127,1775.0,1774.6,0.58541573]
[1680491391815,3.2078,1774.7,1774.6,0.58541573]
[1680491392008,3.2078,1774.7,1774.6,1.71241573]
[1680491392702,3.2078,1774.7,1774.6,1.127]
[1680491393615,3.2078,1774.7,1774.6,1.68223791]
[1680491396514,4.68229207,1774.9,1774.6,1.68223791]
[1680491396714,3.2078,1774.7,1774.6,1.68223791]
[1680491399417,3.2078,1774.7,1774.6,0.55523791]
[1680491399806,3.2078,1774.7,1774.5,1.121]
[1680491400314,3.2078,1774.7,1774.6,1.127]
[1680491404616,3.2078,1774.7,1774.6,1.68742042]
[1680491405019,3.2078,1774.7,1774.4,0.002]
[1680491405020,4.3348,1774.7,1774.4,0.002]
[1680491405212,4.3298,1774.5,1774.1,1.15057045]
[1680491405520,3.2078,1774.2,1774.1,1.71241573]
[1680491406305,3.68763202,1774.2,1774.1,1.71241573]
[1680491406719,3.68763202,1774.2,1774.1,1.127]
[1680491419327,3.68763202,1774.2,1774.0,0.55047296]
[1680491419625,3.68763202,1774.2,1773.9,1.123]
[1680491419922,3.2078,1774.0,1773.9,1.123]
[1680491422028,3.2078,1774.0,1773.8,1.123]
[1680491422623,1.0,1773.9,1773.8,1.123]
[1680491425226,1.0,1773.9,1773.6,1.67781445]
[1680491425428,3.2078,1773.7,1773.6,1.67781445]
[1680491426621,4.3348,1773.7,1773.2,1.45945863]
[1680491426820,4.3348,1773.7,1773.2,0.58541573]
[1680491426821,3.2078,1773.3,1773.2,0.58541573]
[1680491427132,3.2078,1773.3,1773.2,1.127]
[1680491427530,3.2078,1773.3,1773.2,2.127]
[1680491427727,4.02197274,1773.3,1773.2,2.127]
[1680491428129,3.2078,1773.3,1773.2,2.127]
[1680491429037,3.2078,1773.5,1773.2,2.127]
[1680491429227,3.2078,1773.5,1773.4,1.127]
[1680491429429,3.93947531,1773.5,1773.4,1.127]
[1680491431339,0.73167531,1773.5,1773.4,1.127]
[1680491431733,3.2078,1773.7,1773.5,1.127]
[1680491432035,3.2078,1773.7,1773.6,2.123]
[1680491432435,3.2078,1773.7,1773.6,1.123]
[1680491432638,3.89957555,1773.7,1773.6,1.123]
[1680491436843,3.89957555,1773.7,1773.6,2.123]
[1680491442757,3.89957555,1773.7,1773.6,1.123]
[1680491445872,3.89957555,1773.7,1773.6,1.121]
[1680491452076,3.89957555,1773.7,1773.5,1.127]
[1680491460166,4.48937238,1773.7,1773.5,1.127]
[1680491460973,3.89957555,1773.7,1773.5,1.127]
[1680491461186,3.89957555,1773.7,1773.5,1.71241573]
[1680491461470,3.89957555,1773.7,1773.6,1.127]
[1680491462377,3.89957555,1773.7,1773.6,1.71241573]
[1680491463176,3.89957555,1773.7,1773.6,2.71241573]
[1680491463678,3.89957555,1773.7,1773.6,3.0010429]
[1680491463979,0.69177555,1773.7,1773.6,3.0010429]
[1680491464374,3.79759683,1773.9,1773.6,3.0010429]
[1680491464578,4.68229207,1773.9,1773.8,1.123]
[1680491464981,4.09249524,1773.9,1773.8,1.123]
[1680491465177,4.68234033,1773.9,1773.8,1.123]
[1680491465580,4.09249524,1773.9,1773.8,1.123]
[1680491465978,4.68230912,1773.9,1773.8,1.123]
[1680491466476,4.09249524,1773.9,1773.8,1.123]
[1680491466677,4.09249524,1773.9,1773.8,1.71344503]
[1680491468177,4.68253266,1773.9,1773.8,2.58748793]
[1680491468576,0.59003742,1773.9,1773.8,3.1240429]
[1680491468784,0.59003742,1774.0,1773.8,3.43010401]
[1680491468979,0.59003742,1774.0,1773.9,1.127]
[1680491469185,0.59003742,1774.0,1773.9,2.01320332]
[1680491469381,0.59003742,1774.0,1773.9,3.01320332]
[1680491469584,0.59003742,1774.0,1773.9,2.127]
[1680491470487,0.59003742,1774.1,1773.9,3.01286025]
[1680491470680,0.59003742,1774.1,1774.0,1.71757396]
[1680491471386,3.79783742,1774.1,1774.0,1.71757396]
[1680491471781,4.68253266,1774.1,1774.0,1.71757396]
[1680491472086,3.79783742,1774.1,1774.0,1.71757396]
[1680491472278,4.68253266,1774.1,1774.0,1.71757396]
[1680491472481,3.79783742,1774.1,1774.0,1.71757396]
[1680491474884,3.79783742,1774.1,1774.0,0.59057396]
[1680491475084,4.09249524,1774.1,1773.9,1.71757396]
[1680491475291,1.58942865,1774.0,1773.9,1.127]
[1680491475488,1.47412389,1774.0,1773.9,1.127]
[1680491475993,0.58942865,1774.0,1773.9,1.127]
[1680491476191,1.47412389,1774.0,1773.9,1.127]
[1680491476390,0.58942865,1774.0,1773.9,1.127]
[1680491477187,1.47412389,1774.0,1773.9,1.127]
[1680491477589,0.58942865,1774.0,1773.9,1.127]
[1680491477894,1.01258268,1774.0,1773.9,1.127]
[1680491478285,1.89727792,1774.0,1773.9,1.127]
[1680491478494,1.01258268,1774.0,1773.9,1.127]
[1680491478885,2.01258268,1774.0,1773.9,1.127]
[1680491479192,1.01258268,1774.0,1773.9,1.12330931]
[1680491480089,1.89727792,1774.0,1773.9,1.12330931]
[1680491480392,1.30784927,1774.0,1773.9,1.12330931]
[1680491480592,1.89720898,1774.0,1773.9,1.12330931]
[1680491482095,1.89720898,1774.0,1773.8,1.71757396]
[1680491482295,3.2078,1773.9,1773.8,1.71757396]
[1680491483095,3.2078,1773.9,1773.8,2.60343421]
[1680491483693,3.2078,1773.9,1773.8,1.71757396]
[1680491483887,3.2078,1773.9,1773.8,2.60343421]
[1680491484084,3.2078,1773.9,1773.8,2.6031568]
[1680491484288,1.01251374,1774.0,1773.8,3.13986025]
[1680491484592,1.01251374,1774.0,1773.9,2.71728047]
[1680491485193,1.01251374,1774.0,1773.9,2.127]
[1680491487093,1.01251374,1774.0,1773.9,2.71728047]
[1680491488099,0.42315403,1774.0,1773.9,2.71728047]
[1680491488300,0.42315403,1774.0,1773.9,3.60314072]
[1680491488596,0.42315403,1774.0,1773.9,3.01286025]
[1680491488798,0.42315403,1774.0,1773.9,4.13986025]
[1680491490197,0.42315403,1774.0,1773.9,3.254]
[1680491490397,0.42315403,1774.0,1773.9,4.13886983]
[1680491490699,0.42315403,1774.0,1773.9,4.43410401]
[1680491490894,3.2078,1774.3,1774.0,1.0]
[1680491491196,3.2078,1774.3,1774.2,2.254]
[1680491492699,3.33867553,1774.3,1774.2,2.254]
[1680491502001,3.33867553,1774.3,1774.2,1.127]
[1680491504809,3.33867553,1774.3,1774.2,2.254]
[1680491506613,3.33867553,1774.3,1774.2,2.84384581]
[1680491508619,0.13087553,1774.3,1774.2,2.84384581]
[1680491509219,0.13087553,1774.3,1774.2,3.84384581]
[1680491511007,3.79715971,1774.5,1774.2,2.84384581]
[1680491511008,4.68185495,1774.5,1774.2,2.84384581]
[1680491511221,4.68185495,1774.5,1774.4,1.127]
[1680491512907,4.09249524,1774.5,1774.4,1.127]
[1680491514917,0.58875641,1774.6,1774.4,1.71684581]
[1680491515118,0.58875641,1774.6,1774.5,2.127]
[1680491515821,4.68125165,1774.7,1774.5,2.127]
[1680491516017,4.68125165,1774.7,1774.6,2.127]
[1680491516412,3.79655768,1774.7,1774.6,2.127]
[1680491517519,3.79655768,1774.7,1774.6,1.127]
[1680491519923,3.2078,1774.7,1774.6,1.127]
[1680491520120,0.58875768,1774.8,1774.6,1.127]
[1680491520426,4.68125292,1774.9,1774.7,1.123]
[1680491520625,3.79655768,1774.9,1774.8,1.121]
[1680491522423,0.58840083,1774.9,1774.8,1.121]
[1680491522618,0.58840083,1775.0,1774.9,1.127]
[1680491522817,0.58840083,1775.0,1774.9,3.254]
[1680491526424,0.58840083,1775.0,1774.9,3.3699174]
[1680491528632,4.67880207,1775.1,1774.9,3.3699174]
[1680491528828,3.79620083,1775.1,1775.0,2.127]
[1680491529531,0.58840083,1775.1,1775.0,2.127]
[1680491530928,6.57848386,1775.2,1775.0,2.127]
[1680491531119,6.57848386,1775.2,1775.1,1.121]
[1680491537835,6.57848386,1775.2,1775.1,1.31254509]
[1680491542729,6.57848386,1775.2,1775.1,5.64734509]
[1680491542940,6.57848386,1775.2,1775.1,2.43954509]
[1680491545746,6.57848386,1775.2,1775.1,5.64734509]
[1680491546151,6.57848386,1775.2,1775.1,2.43954509]
[1680491552153,6.57848386,1775.2,1775.1,1.31854509]
[1680491555947,6.57848386,1775.2,1775.1,4.52634509]
[1680491556554,1.87465632,1775.2,1775.1,5.65334509]
[1680491556850,3.79620083,1775.7,1775.2,0.99934368]
[1680491557050,3.79620083,1775.7,1775.6,1.127]
[1680491557347,3.79620083,1775.7,1775.6,0.845]
[1680491558347,4.67880207,1775.7,1775.6,0.845]
[1680491558544,4.09040124,1775.7,1775.6,0.845]
[1680491561753,4.67865008,1775.7,1775.6,0.845]
[1680491561952,4.09040124,1775.7,1775.6,0.845]
[1680491562152,4.09040124,1775.7,1775.6,1.126]
[1680491566459,3.2078,1775.7,1775.6,1.126]
[1680491566761,4.09062248,1775.7,1775.6,1.126]
[1680491567469,4.09062248,1775.7,1775.4,1.126]
[1680491567764,3.79629008,1775.5,1775.4,1.126]
[1680491572664,4.6790252,1775.5,1775.4,1.126]
[1680491573561,4.09053512,1775.5,1775.4,1.126]
[1680491579668,4.09053512,1775.5,1775.4,1.71584581]
[1680491580068,4.09053512,1775.5,1775.4,1.126]
[1680491580270,4.09053512,1775.5,1775.4,1.71584581]
[1680491580770,0.58924416,1775.5,1775.4,1.71584581]
[1680491580978,0.58924416,1775.5,1775.4,2.01076872]
[1680491581969,0.58924416,1775.5,1775.4,3.01076872]
[1680491582876,0.58924416,1775.5,1775.4,3.36897767]
[1680491585467,0.58924416,1775.5,1775.4,4.49497767]
[1680491585673,1.47197928,1775.6,1775.4,4.49497767]
[1680491585874,0.58924416,1775.6,1775.5,1.7161167]
[1680491586073,0.58924416,1775.6,1775.5,6.21856872]
[1680491586374,0.58924416,1775.7,1775.6,2.121]
[1680491586577,0.58924416,1775.7,1775.6,3.83701075]
[1680491586771,1.47197928,1775.7,1775.6,3.83701075]
[1680491587875,0.58924416,1775.7,1775.6,3.83701075]
[1680491588675,0.58924416,1775.7,1775.6,2.83701075]
[1680491589380,0.58924416,1775.7,1775.6,3.83701075]
[1680491590779,1.47197928,1775.7,1775.6,3.83701075]
[1680491590979,0.58924416,1775.7,1775.6,3.83701075]
[1680491591377,0.58924416,1775.7,1775.6,2.83701075]
[1680491593276,0.58924416,1775.7,1775.6,3.83701075]
[1680491593780,0.58924416,1775.7,1775.6,2.83701075]
[1680491594177,0.58924416,1775.7,1775.6,1.71601075]
[1680491597880,0.58924416,1775.7,1775.6,2.09262198]
[1680491602090,0.58924416,1775.7,1775.6,3.21862198]
[1680491604788,1.47197928,1775.7,1775.6,3.21862198]
[1680491605088,0.58924416,1775.7,1775.6,3.21862198]
[1680491606187,0.58924416,1775.7,1775.6,4.21862198]
[1680491606890,0.58924416,1775.7,1775.6,3.21862198]
[1680491612088,0.58924416,1775.7,1775.6,2.09262198]
[1680491613084,0.58924416,1775.7,1775.6,3.09262198]
[1680491614091,0.58924416,1775.7,1775.6,2.09262198]
[1680491615293,0.58924416,1775.7,1775.6,3.09262198]
[1680491617893,0.58924416,1775.7,1775.6,2.09262198]
[1680491618597,0.58924416,1775.7,1775.6,3.09262198]
[1680491619887,0.58924416,1775.7,1775.6,3.9773907]
[1680491620498,0.58924416,1775.7,1775.6,2.9773907]
[1680491620687,1.47197928,1775.7,1775.6,2.38737995]
[1680491620892,1.47197928,1775.7,1775.6,3.38737995]
[1680491621297,1.47197928,1775.7,1775.6,4.51337995]
[1680491622798,0.88273512,1775.7,1775.6,4.51337995]
[1680491624794,0.88273512,1775.7,1775.6,3.62861123]
[1680491625703,0.87684694,1775.7,1775.6,3.62861123]
[1680491626294,0.87684694,1775.7,1775.6,2.62861123]
[1680491627201,0.87684694,1775.7,1775.6,1.21561123]
[1680491627999,0.87684694,1775.7,1775.6,2.39571524]
[1680491628198,0.87684694,1775.7,1775.6,1.21561123]
[1680491628601,0.87684694,1775.7,1775.6,2.39571524]
[1680491629400,0.87684694,1775.7,1775.6,1.21561123]
[1680491629596,1.17959365,1775.8,1775.7,0.841]